Workbook

Sheet 報告書
B3: 組機様式第5号
B6: 〒 | F6: － | AH6: 労働保険番号
AH7: 府県 | AK7: 所 掌 | AN7: 管 轄 | AQ7: 基 幹 番 号 | AZ7: 枝 番 号 | BE7: 料変 | DK7: 0
B8: 住所 | AH8: 22 | AK8: 3 | AN8: 05 | AQ8: 940010 | BN8: ３．事業の概要 | CI8: ４．特掲事項 | CX8: ５．新年度賃金見込額
CK9: １．該当する | CZ9: =IF(DK15=1,"①","１") &"．" -> １． | DB9: 前年度と同額
AH10: 雇用保険事業所番号 | CK10: ２．該当しない | CZ10: =IF(DK15=2,"②","２") &"．" -> ２． | DB10: 前年度と変る
CX11: 労災 | DG11: 千円
B12: 事業場名 | BN12: ６．延納の申請 | CX12: 雇用 | DG12: 千円
AH13: 事務組合名 | BP13: =IF(DK7=1,"①","１") &"．" -> １． | BR13: 一括納付 | CZ13: =IF(DK15=3,"③","３") &"．" -> ３． | DB13: 委託解除年月日
B14: 事業主名 | AD14: 殿 | AI14: 労働保険事務組合三島商工会議所 | BP14: =IF(DK7=2,"②","２") &"．" -> ２． | BR14: 分納（３回） | DB14: 年 | DE14: 月 | DH14: 日
CZ15: =IF(DK15=4,"④","４") &"．" -> ４． | DB15: 委託解除拠出金納付済 | DK15: 0
U16: 事 | V16: 業 | W16: 場 | X16: T | Y16: E | Z16: L | AT16: T | AU16: E | AV16: L | AW16: 055-975-4441
B17: 項目 | I17: １． 労 災 保 険 及 び 一 般 拠 出 金 対 象 労 働 者 数 及 び 賃 金 | BR17: ２． 雇 用 保 険 対 象 被 保 険 者 数 及 び 賃 金
B20: 月別
I21: 人 員 | L21: 支 払 賃 金 | V21: 人 員 | Y21: 支 払 賃 金 | AI21: 人 員 | AL21: 支 払 賃 金 | AV21: 人 員 | AY21: 支 払 賃 金 | BJ21: 人 員 | BM21: 支 払 賃 金 | BW21: 人 員 | BZ21: 支 払 賃 金 | CJ21: 人 員 | CM21: 支 払 賃 金 | CW21: 人 員 | CZ21: 支 払 賃 金
I22: 人 | L22: 円 | V22: 人 | Y22: 円 | AI22: 人 | AL22: 円 | AV22: 人 | AY22: 円 | BJ22: 人 | BM22: 円 | BW22: 人 | BZ22: 円 | CJ22: 人 | CM22: 円
C23: 4 | D23: 4 | E23: 4 | G23: 月 | AV23: =IF(AND(ISBLANK(I23), ISBLANK(V23),ISBLANK(AI23)),"",(I23+V23+AI23)) ->  | AY23: =L23+Y23+AL23 -> 0 | CJ23: =IF(AND(ISBLANK(BJ23), ISBLANK(BW23)),"",(BJ23+BW23)) ->  | CM23: =BM23+BZ23 -> 0
C24: 5 | D24: 5 | E24: 5 | G24: 月 | AY24: 0 | CM24: 0
C25: 6 | D25: 6 | E25: 6 | G25: 月 | AY25: 0 | CM25: 0
C26: 7 | D26: 7 | E26: 7 | G26: 月 | AY26: 0 | CM26: 0
C27: 8 | D27: 8 | E27: 8 | G27: 月 | AY27: 0 | CM27: 0
C28: 9 | D28: 9 | E28: 9 | G28: 月 | AY28: 0 | CM28: 0
C29: 10 | D29: 10 | E29: 10 | G29: 月 | AY29: 0 | CM29: 0
C30: 11 | D30: 11 | E30: 11 | G30: 月 | AY30: 0 | CM30: 0
C31: 12 | D31: 12 | E31: 12 | G31: 月 | AY31: 0 | CM31: 0
C32: 1 | D32: 1 | E32: 1 | G32: 月 | AY32: 0 | CM32: 0
C33: 2 | D33: 2 | E33: 2 | G33: 月 | AY33: 0 | CM33: 0
C34: 3 | D34: 3 | E34: 3 | G34: 月 | AY34: 0 | CM34: 0
B35: 賞与等 | G35: 月 | AY35: 0 | CM35: 0
B36: 賞与等 | G36: 月 | AY36: 0 | CM36: 0
B37: 賞与等 | G37: 月 | AY37: 0 | CM37: 0
B38: 合 計 | L38: =SUM(L23:U37) -> 0 | Y38: =SUM(Y23:AH37) -> 0 | AL38: =SUM(AL23:AU37) -> 0 | AV38: =IF(ISERROR(ROUNDDOWN(AVERAGE(AV23:AX34),0)),"",ROUNDDOWN(AVERAGE(AV23:AX34),0)) ->  | AY38: =SUM(AY23:BH37) -> 0 | BM38: =SUM(BM23:BV37) -> 0 | BZ38: =SUM(BZ23:CI37) -> 0 | CJ38: =IF(ISERROR(ROUNDDOWN(AVERAGE(CJ23:CJ34),0)),"",ROUNDDOWN(AVERAGE(CJ23:CJ34),0)) ->  | CM38: =SUM(CM23:CV37) -> 0 | CW38: =IF(ISERROR(ROUNDDOWN(AVERAGE(CW23:CW34),0)),"",ROUNDDOWN(AVERAGE(CW23:CW34),0)) ->  | CZ38: =SUM(CZ23:DI37) -> 0
AX39: 人 | AY39: =ROUNDDOWN(AY38/1000,0) -> 0 | BG39: 千円 | CL39: 人 | CM39: =ROUNDDOWN(CM38/1000,0) -> 0 | CU39: 千円 | CY39: 人 | CZ39: =ROUNDDOWN(CZ38/1000,0) -> 0 | DH39: 千円
AD41: 業種変更年月 | AL41: 業種変更前 （業種変更が無い時） | AY41: 0 | BG41: 千円 | CB41: 月 ～ | CG41: 月迄 | CM41: 0 | CU41: 千円 | CZ41: 0 | DH41: 千円
AX42: 人 | CL42: 人 | CY42: 人
AF43: 年 | AJ43: 月 | AL43: 業種変更後 | AY43: 0 | BG43: 千円 | CM43: 0 | CU43: 千円 | CZ43: 0 | DH43: 千円
B46: NO | E46: 特別加入者の氏名 | T46: 承認された 基礎日額 | Y46: 適用月数 | AC46: 希望する 基礎日額 | AI46: NO | AL46: 特別加入者の氏名 | BA46: 承認された 基礎日額 | BF46: 適用月数 | BJ46: 希望する 基礎日額 | BP46: NO | BS46: 特別加入者の氏名 | CH46: 承認された 基礎日額 | CM46: 適用月数 | CQ46: 希望する 基礎日額 | CW46: 申告済概算保険料
Y47: 確定 | AA47: 概算 | BF47: 確定 | BH47: 概算 | CM47: 確定 | CO47: 概算 | DH47: 円
AF48: 00 | BM48: 00 | CT48: 00
AF49: 00 | BM49: 00 | CT49: 00 | CW49: 作成者
AF50: 00 | BM50: 00 | CT50: 00 | DH50: 印
AF51: 00 | BM51: 00 | CT51: 00
CJ53: 予備欄
BC54: 上記のとおり報告します。
BS55: 事業主氏名 | CL55: 1 期 | CU55: 円 | DB55: 円 | DI55: 円
BC56: 令和 | BH56: 年 | BL56: 月 | BP56: 日 | CL56: ２ 期 | CU56: 円 | DB56: 円 | DI56: 円
CH57: 印 | CL57: ３ 期 | CU57: 円 | DB57: 円 | DI57: 円

Sheet 報告書入力例
B3: 組機様式第5号
B6: 〒 | C6: 102 | F6: － | G6: 0072 | AH6: 労働保険番号
AH7: 府県 | AK7: 所 掌 | AN7: 管 轄 | AQ7: 基 幹 番 号 | AZ7: 枝 番 号 | BE7: 料変 | DK7: 1
B8: 住所 | F8: 東京都千代田区飯田橋 | AH8: 13 | AK8: 3 | AN8: 01 | AQ8: 90123 | AZ8: 055 | BN8: ３．事業の概要 | CB8: 9801 | CI8: ４．特掲事項 | CS8: 2 | CX8: ５．新年度賃金見込額
CK9: １．該当する | CZ9: =IF(DK15=1,"①","１") &"．" -> ①． | DB9: 前年度と同額
F10: ２-4-１ | AH10: 雇用保険事業所番号 | CK10: ２．該当しない | CZ10: =IF(DK15=2,"②","２") &"．" -> ２． | DB10: 前年度と変る
AH11: 1234 | AN11: 4566789 | AW11: 1 | CX11: 労災 | DG11: 千円
B12: 事業場名 | F12: 株式会社 ヤマシタ | BN12: ６．延納の申請 | CX12: 雇用 | DG12: 千円
AH13: 事務組合名 | BP13: =IF(DK7=1,"①","１") &"．" -> ①． | BR13: 一括納付 | CZ13: =IF(DK15=3,"③","３") &"．" -> ３． | DB13: 委託解除年月日
B14: 事業主名 | F14: 山下 和昭 | AD14: 殿 | AI14: 市ヶ谷労働保険事務組合 | BP14: =IF(DK7=2,"②","２") &"．" -> ２． | BR14: 分納（３回） | DB14: 年 | DE14: 月 | DH14: 日
CZ15: =IF(DK15=4,"④","４") &"．" -> ４． | DB15: 委託解除拠出金納付済 | DK15: 1
U16: 事 | V16: 業 | W16: 場 | X16: T | Y16: E | Z16: L | AA16: 03-3234-7415 | AT16: T | AU16: E | AV16: L | AW16: 03-3234-6451
B17: 項目 | I17: １． 労 災 保 険 及 び 一 般 拠 出 金 対 象 労 働 者 数 及 び 賃 金 | BR17: ２． 雇 用 保 険 対 象 被 保 険 者 数 及 び 賃 金
B20: 月別
I21: 人 員 | L21: 支 払 賃 金 | V21: 人 員 | Y21: 支 払 賃 金 | AI21: 人 員 | AL21: 支 払 賃 金 | AV21: 人 員 | AY21: 支 払 賃 金 | BJ21: 人 員 | BM21: 支 払 賃 金 | BW21: 人 員 | BZ21: 支 払 賃 金 | CJ21: 人 員 | CM21: 支 払 賃 金 | CW21: 人 員 | CZ21: 支 払 賃 金
I22: 人 | L22: 円 | V22: 人 | Y22: 円 | AI22: 人 | AL22: 円 | AV22: 人 | AY22: 円 | BJ22: 人 | BM22: 円 | BW22: 人 | BZ22: 円 | CJ22: 人 | CM22: 円 | CW22: 人 | CZ22: 円
C23: 4 | D23: 4 | E23: 4 | G23: 月 | I23: 11 | L23: 2768898 | V23: 1 | Y23: 363510 | AI23: 0 | AL23: 0 | AV23: =IF(AND(ISBLANK(I23), ISBLANK(V23),ISBLANK(AI23)),"",(I23+V23+AI23)) -> 12 | AY23: =L23+Y23+AL23 -> 3132408 | BJ23: 11 | BM23: 2768898 | BW23: 1 | BZ23: 363510 | CJ23: =IF(AND(ISBLANK(BJ23), ISBLANK(BW23)),"",(BJ23+BW23)) -> 12 | CM23: =BM23+BZ23 -> 3132408 | CW23: 2 | CZ23: 484550
C24: 5 | D24: 5 | E24: 5 | G24: 月 | I24: 11 | L24: 2759845 | V24: 1 | Y24: 366809 | AI24: 1 | AL24: 154554 | AV24: 13 | AY24: 3281208 | BJ24: 11 | BM24: 2759845 | BW24: 1 | BZ24: 366809 | CJ24: 12 | CM24: 3126654 | CW24: 2 | CZ24: 497384
C25: 6 | D25: 6 | E25: 6 | G25: 月 | I25: 11 | L25: 2738461 | V25: 1 | Y25: 368177 | AI25: 1 | AL25: 142100 | AV25: 13 | AY25: 3248738 | BJ25: 11 | BM25: 2738461 | BW25: 1 | BZ25: 368177 | CJ25: 12 | CM25: 3106638 | CW25: 2 | CZ25: 516290
C26: 7 | D26: 7 | E26: 7 | G26: 月 | I26: 11 | L26: 2749515 | V26: 1 | Y26: 354923 | AI26: 1 | AL26: 158350 | AV26: 13 | AY26: 3262788 | BJ26: 11 | BM26: 2749515 | BW26: 1 | BZ26: 354923 | CJ26: 12 | CM26: 3104438 | CW26: 2 | CZ26: 488765
C27: 8 | D27: 8 | E27: 8 | G27: 月 | I27: 11 | L27: 2821268 | V27: 1 | Y27: 362118 | AI27: 1 | AL27: 166611 | AV27: 13 | AY27: 3349997 | BJ27: 11 | BM27: 2821268 | BW27: 1 | BZ27: 362118 | CJ27: 12 | CM27: 3183386 | CW27: 2 | CZ27: 499736
C28: 9 | D28: 9 | E28: 9 | G28: 月 | I28: 11 | L28: 2722413 | V28: 1 | Y28: 363949 | AI28: 1 | AL28: 157300 | AV28: 13 | AY28: 3243662 | BJ28: 11 | BM28: 2722413 | BW28: 1 | BZ28: 363949 | CJ28: 12 | CM28: 3086362 | CW28: 2 | CZ28: 514008
C29: 10 | D29: 10 | E29: 10 | G29: 月 | I29: 11 | L29: 2899716 | V29: 1 | Y29: 363668 | AI29: 1 | AL29: 183659 | AV29: 13 | AY29: 3447043 | BJ29: 11 | BM29: 2899716 | BW29: 1 | BZ29: 363668 | CJ29: 12 | CM29: 3263384 | CW29: 2 | CZ29: 483606
C30: 11 | D30: 11 | E30: 11 | G30: 月 | I30: 11 | L30: 2896855 | V30: 1 | Y30: 365919 | AI30: 0 | AL30: 0 | AV30: 12 | AY30: 3262774 | BJ30: 11 | BM30: 2896855 | BW30: 1 | BZ30: 365919 | CJ30: 12 | CM30: 3262774 | CW30: 2 | CZ30: 499160
C31: 12 | D31: 12 | E31: 12 | G31: 月 | I31: 11 | L31: 2873226 | V31: 1 | Y31: 360563 | AI31: 0 | AL31: 0 | AV31: 12 | AY31: 3233789 | BJ31: 11 | BM31: 2873226 | BW31: 1 | BZ31: 360563 | CJ31: 12 | CM31: 3233789 | CW31: 2 | CZ31: 489808
C32: 1 | D32: 1 | E32: 1 | G32: 月 | I32: 11 | L32: 2875869 | V32: 1 | Y32: 362115 | AI32: 0 | AL32: 0 | AV32: 12 | AY32: 3237984 | BJ32: 11 | BM32: 2875869 | BW32: 1 | BZ32: 362115 | CJ32: 12 | CM32: 3237984 | CW32: 2 | CZ32: 499160
C33: 2 | D33: 2 | E33: 2 | G33: 月 | I33: 11 | L33: 2783193 | V33: 1 | Y33: 361992 | AI33: 0 | AL33: 0 | AV33: 12 | AY33: 3145185 | BJ33: 11 | BM33: 2783193 | BW33: 1 | BZ33: 361992 | CJ33: 12 | CM33: 3145185 | CW33: 2 | CZ33: 498865
C34: 3 | D34: 3 | E34: 3 | G34: 月 | I34: 11 | L34: 2767933 | Y34: 372334 | AI34: 1 | AL34: 176401 | AV34: 12 | AY34: 3316668 | BJ34: 11 | BM34: 2767933 | BW34: 1 | BZ34: 372334 | CJ34: 12 | CM34: 3140267 | CW34: 2 | CZ34: 475688
B35: 賞与等 | E35: 7 | G35: 月 | L35: 5591225 | Y35: 752115 | AY35: 6343340 | BM35: 5591225 | BZ35: 752115 | CM35: 6343340 | CZ35: 952736
B36: 賞与等 | E36: 12 | G36: 月 | L36: 6670719 | Y36: 897325 | AY36: 7568044 | BM36: 6670719 | BZ36: 897325 | CM36: 7568044 | CZ36: 1142651
B37: 賞与等 | G37: 月 | AY37: 0 | CM37: 0
B38: 合 計 | L38: =SUM(L23:U37) -> 45919136 | Y38: =SUM(Y23:AH37) -> 6015517 | AL38: =SUM(AL23:AU37) -> 1138975 | AV38: =IF(ISERROR(ROUNDDOWN(AVERAGE(AV23:AX34),0)),"",ROUNDDOWN(AVERAGE(AV23:AX34),0)) -> 12 | AY38: =SUM(AY23:BH37) -> 53073628 | BM38: =SUM(BM23:BV37) -> 45919136 | BZ38: =SUM(BZ23:CI37) -> 6015517 | CJ38: =IF(ISERROR(ROUNDDOWN(AVERAGE(CJ23:CJ34),0)),"",ROUNDDOWN(AVERAGE(CJ23:CJ34),0)) -> 12 | CM38: =SUM(CM23:CV37) -> 51934653 | CW38: =IF(ISERROR(ROUNDDOWN(AVERAGE(CW23:CW34),0)),"",ROUNDDOWN(AVERAGE(CW23:CW34),0)) -> 2 | CZ38: =SUM(CZ23:DI37) -> 8042407
AX39: 人 | AY39: =ROUNDDOWN(AY38/1000,0) -> 53073 | BG39: 千円 | CL39: 人 | CM39: =ROUNDDOWN(CM38/1000,0) -> 51934 | CU39: 千円 | CY39: 人 | CZ39: =ROUNDDOWN(CZ38/1000,0) -> 8042 | DH39: 千円
AD41: 業種変更年月 | AL41: 業種変更前 （業種変更が無い時） | AV41: 12 | AY41: 53073 | BG41: 千円 | CB41: 月 ～ | CG41: 月迄 | CJ41: 12 | CM41: 51934 | CU41: 千円 | CW41: 2 | CZ41: 8042 | DH41: 千円
AX42: 人 | CL42: 人 | CY42: 人
AF43: 年 | AJ43: 月 | AL43: 業種変更後 | AY43: 0 | BG43: 千円 | CU43: 千円 | DH43: 千円
B46: NO | E46: 特別加入者の氏名 | T46: 承認された 基礎日額 | Y46: 適用月数 | AC46: 希望する 基礎日額 | AI46: NO | AL46: 特別加入者の氏名 | BA46: 承認された 基礎日額 | BF46: 適用月数 | BJ46: 希望する 基礎日額 | BP46: NO | BS46: 特別加入者の氏名 | CH46: 承認された 基礎日額 | CM46: 適用月数 | CQ46: 希望する 基礎日額 | CW46: 申告済概算保険料
Y47: 確定 | AA47: 概算 | BF47: 確定 | BH47: 概算 | CM47: 確定 | CO47: 概算 | CW47: 501302 | DH47: 円
B48: 01 | E48: 山下 和昭 | T48: 3500 | Y48: 12 | AA48: 12 | AC48: 35 | AF48: 00 | BM48: 00 | CT48: 00
AF49: 00 | BM49: 00 | CT49: 00 | CW49: 作成者
AF50: 00 | BM50: 00 | CT50: 00 | CW50: 長田 聡 | DH50: 印
AF51: 00 | BM51: 00 | CT51: 00
B53: 雇 用 保 険 料 免 除 高 年 齢 労 働 者 氏 名 | CJ53: 予備欄 | CO53: 予備費
B54: 川崎 太郎 | O54: 片倉 健二 | BC54: 上記のとおり報告します。
B55: 1929-12-03 | O55: 1930-04-06 | BS55: 事業主氏名 | CL55: 1 期 | CO55: 1000 | CU55: 円 | DB55: 円 | DI55: 円
BC56: 平成 | BF56: 22 | BH56: 年 | BJ56: 4 | BL56: 月 | BN56: 1 | BP56: 日 | BS56: 山下 和昭 | CL56: ２ 期 | CU56: 円 | DB56: 円 | DI56: 円
CH57: 印 | CL57: ３ 期 | CU57: 円 | DB57: 円 | DI57: 円
